[Event "9e Open International de Porticcio"]
[Site "Porticcio, France"]
[Date "2024.07.05"]
[Round "9.3"]
[White "Hamdouchi, Hicham"]
[Black "Bulmaga, Irina"]
[Result "1/2-1/2"]
[TimeControl "1h30+30s/move"]
[WhiteElo "2527"]
[BlackElo "2391"]

1. e4 {[%clk 01:30:54]} {[%emt 00:00:05]} e5 {[%clk 01:30:54]} {[%emt
00:00:06]} 2. Nf3 {[%clk 01:31:11]} {[%emt 00:00:13]} Nc6 {[%clk 01:31:17]}
{[%emt 00:00:07]} 3. Bb5 {[%clk 01:31:09]} {[%emt 00:00:32]} Nf6 {[%clk
01:31:29]} {[%emt 00:00:19]} 4. O-O {[%clk 01:30:53]} {[%emt 00:00:46]} Nxe4
{[%clk 01:31:44]} {[%emt 00:00:15]} 5. d4 {[%clk 01:31:17]} {[%emt 00:00:05]}
Nd6 {[%clk 01:32:03]} {[%emt 00:00:11]} 6. Bxc6 {[%clk 01:31:39]} {[%emt
00:00:09]} dxc6 {[%clk 01:32:26]} {[%emt 00:00:07]} 7. dxe5 {[%clk 01:32:03]}
{[%emt 00:00:06]} Nf5 {[%clk 01:32:47]} {[%emt 00:00:09]} 8. Qxd8+ {[%clk
01:32:27]} {[%emt 00:00:07]} Kxd8 {[%clk 01:33:11]} {[%emt 00:00:05]} 9. Nc3
{[%clk 01:32:48]} {[%emt 00:00:09]} Be7 {[%clk 01:32:34]} {[%emt 00:01:07]} 10.
Bf4 {[%clk 01:31:53]} {[%emt 00:01:25]} Nh4 {[%clk 01:30:06]} {[%emt 00:02:58]}
11. Rad1+ {[%clk 01:27:06]} {[%emt 00:05:17]} Ke8 {[%clk 01:28:10]} {[%emt
00:02:26]} 12. Nd4 {[%clk 01:24:37]} {[%emt 00:02:59]} Nf5 {[%clk 01:26:09]}
{[%emt 00:02:31]} 13. Nce2 {[%clk 01:20:36]} {[%emt 00:04:31]} Nxd4 {[%clk
01:17:14]} {[%emt 00:09:25]} 14. Nxd4 {[%clk 01:20:47]} {[%emt 00:00:19]} Be6
{[%clk 01:15:43]} {[%emt 00:02:01]} 15. Nxe6 {[%clk 01:20:14]} {[%emt
00:01:03]} fxe6 {[%clk 01:15:54]} {[%emt 00:00:18]} 16. Be3 {[%clk 01:20:41]}
{[%emt 00:00:04]} a5 {[%clk 01:13:36]} {[%emt 00:02:48]} 17. f4 {[%clk
01:12:09]} {[%emt 00:09:02]} g6 {[%clk 01:09:12]} {[%emt 00:04:54]} 18. Kf2
{[%clk 01:11:35]} {[%emt 00:01:04]} Rd8 {[%clk 01:01:49]} {[%emt 00:07:53]} 19.
Rxd8+ {[%clk 01:10:45]} {[%emt 00:01:20]} Bxd8 {[%clk 00:57:44]} {[%emt
00:04:34]} 20. Kf3 {[%clk 01:04:51]} {[%emt 00:06:24]} Be7 {[%clk 00:54:29]}
{[%emt 00:03:46]} 21. Rd1 {[%clk 01:03:57]} {[%emt 00:01:24]} h5 {[%clk
00:52:59]} {[%emt 00:01:59]} 22. g3 {[%clk 01:04:15]} {[%emt 00:00:12]} b6
{[%clk 00:51:22]} {[%emt 00:02:08]} 23. h3 {[%clk 00:57:59]} {[%emt 00:06:45]}
Rh7 {[%clk 00:51:19]} {[%emt 00:00:33]} 24. Kg2 {[%clk 00:57:14]} {[%emt
00:01:15]} Rh8 {[%clk 00:48:32]} {[%emt 00:03:17]} 25. a4 {[%clk 00:56:56]}
{[%emt 00:00:49]} Rh7 {[%clk 00:47:49]} {[%emt 00:01:12]} 26. b3 {[%clk
00:57:14]} {[%emt 00:00:12]} Rh8 {[%clk 00:43:08]} {[%emt 00:05:11]} 27. c4
{[%clk 00:52:51]} {[%emt 00:04:53]} Bc5 {[%clk 00:39:03]} {[%emt 00:04:35]} 28.
Bxc5 {[%clk 00:38:46]} {[%emt 00:14:36]} bxc5 {[%clk 00:39:30]} {[%emt
00:00:02]} 29. Kf3 {[%clk 00:39:11]} {[%emt 00:00:05]} Ke7 {[%clk 00:37:13]}
{[%emt 00:02:47]} 30. Rd3 {[%clk 00:39:28]} {[%emt 00:00:12]} Rh7 {[%clk
00:34:19]} {[%emt 00:03:24]} 31. Kg2 {[%clk 00:36:17]} {[%emt 00:03:42]} Rh8
{[%clk 00:28:12]} {[%emt 00:06:37]} 32. g4 {[%clk 00:34:51]} {[%emt 00:01:55]}
hxg4 {[%clk 00:27:18]} {[%emt 00:01:24]} 33. hxg4 {[%clk 00:35:02]} {[%emt
00:00:19]} Rh4 {[%clk 00:27:19]} {[%emt 00:00:29]} 34. Rg3 {[%clk 00:29:43]}
{[%emt 00:05:49]} Kf7 {[%clk 00:26:02]} {[%emt 00:01:47]} 35. Rd3 {[%clk
00:23:49]} {[%emt 00:06:25]} Ke7 {[%clk 00:25:54]} {[%emt 00:00:37]} 36. Rh3
{[%clk 00:22:55]} {[%emt 00:01:24]} Rxh3 {[%clk 00:21:11]} {[%emt 00:05:14]} 37.
Kxh3 {[%clk 00:23:07]} {[%emt 00:00:18]} Kf8 {[%clk 00:21:22]} {[%emt
00:00:19]} 38. Kh4 {[%clk 00:18:56]} {[%emt 00:04:41]} Kf7 {[%clk 00:21:43]}
{[%emt 00:00:09]} 39. Kg5 {[%clk 00:17:23]} {[%emt 00:02:03]} Kg7 {[%clk
00:22:10]} {[%emt 00:00:03]} 40. f5 {[%clk 00:17:03]} {[%emt 00:00:50]} gxf5
{[%clk 00:21:58]} {[%emt 00:00:41]} 41. gxf5 {[%clk 00:17:23]} {[%emt
00:00:10]} exf5 {[%clk 00:22:17]} {[%emt 00:00:11]} 42. Kxf5 {[%clk 00:17:41]}
{[%emt 00:00:13]} Kf7 {[%clk 00:22:45]} {[%emt 00:00:02]} 43. e6+ {[%clk
00:17:44]} {[%emt 00:00:26]} Ke7 {[%clk 00:23:12]} {[%emt 00:00:03]} 44. Ke5
{[%clk 00:18:07]} {[%emt 00:00:07]} Ke8 {[%clk 00:23:19]} {[%emt 00:00:23]} 45.
Kf6 {[%clk 00:18:17]} {[%emt 00:00:19]} Kf8 {[%clk 00:23:40]} {[%emt 00:00:09]}
46. e7+ {[%clk 00:17:54]} {[%emt 00:00:54]} Ke8 {[%clk 00:24:07]} {[%emt
00:00:03]} 47. Ke6 {[%emt 00:00:07]} 1/2-1/2

[Event "9e Open International de Porticcio"]
[Site "Porticcio, France"]
[Date "2024.07.05"]
[Round "9.5"]
[White "Priansh Das"]
[Black "Yankelevich, Lev"]
[Result "1/2-1/2"]
[TimeControl "1h30+30s/move"]
[WhiteElo "2263"]
[BlackElo "2416"]

1. e4 {[%clk 01:30:57]} {[%emt 00:00:02]} e5 {[%clk 01:30:02]} {[%emt
00:00:58]} 2. Nf3 {[%clk 01:31:20]} {[%emt 00:00:07]} Nc6 {[%clk 01:30:29]}
{[%emt 00:00:04]} 3. Bc4 {[%clk 01:31:44]} {[%emt 00:00:07]} Nf6 {[%clk
01:30:53]} {[%emt 00:00:05]} 4. d3 {[%clk 01:32:08]} {[%emt 00:00:05]} Be7
{[%clk 01:27:47]} {[%emt 00:03:37]} 5. O-O {[%clk 01:32:27]} {[%emt 00:00:11]}
O-O {[%clk 01:28:13]} {[%emt 00:00:04]} 6. c3 {[%clk 01:32:54]} {[%emt
00:00:03]} d5 {[%clk 01:19:49]} {[%emt 00:08:54]} 7. exd5 {[%clk 01:33:07]}
{[%emt 00:00:17]} Nxd5 {[%clk 01:20:15]} {[%emt 00:00:04]} 8. h3 {[%clk
01:31:37]} {[%emt 00:02:00]} Nb6 {[%clk 01:15:08]} {[%emt 00:05:37]} 9. Bb3
{[%clk 01:29:53]} {[%emt 00:02:14]} Bf5 {[%clk 01:14:44]} {[%emt 00:00:53]} 10.
Re1 {[%clk 01:26:48]} {[%emt 00:03:36]} Qxd3 {[%clk 01:13:41]} {[%emt
00:01:34]} 11. Qxd3 {[%clk 01:26:11]} {[%emt 00:01:07]} Bxd3 {[%clk 01:14:04]}
{[%emt 00:00:06]} 12. Nxe5 {[%clk 01:26:38]} {[%emt 00:00:04]} Nxe5 {[%clk
01:14:26]} {[%emt 00:00:08]} 13. Rxe5 {[%clk 01:27:03]} {[%emt 00:00:05]} Bf6
{[%clk 01:10:56]} {[%emt 00:03:59]} 14. Re1 {[%clk 01:26:23]} {[%emt 00:01:11]}
Rfe8 {[%clk 01:11:22]} {[%emt 00:00:04]} 15. Rxe8+ {[%clk 01:25:05]} {[%emt
00:01:47]} Rxe8 {[%clk 01:11:46]} {[%emt 00:00:05]} 16. Be3 {[%clk 01:25:25]}
{[%emt 00:00:11]} Nc4 {[%clk 01:11:00]} {[%emt 00:01:16]} 17. Bxc4 {[%clk
01:25:44]} {[%emt 00:00:11]} Bxc4 {[%clk 01:11:28]} {[%emt 00:00:01]} 18. Na3
{[%clk 01:25:28]} {[%emt 00:00:46]} Ba6 {[%clk 01:08:40]} {[%emt 00:03:18]} 19.
Rd1 {[%clk 01:25:46]} {[%emt 00:00:12]} b6 {[%clk 01:05:28]} {[%emt 00:03:42]}
20. Rd7 {[%clk 01:23:34]} {[%emt 00:02:42]} Be5 {[%clk 01:05:27]} {[%emt
00:00:32]} 21. Rd1 {[%clk 01:17:13]} {[%emt 00:06:51]} f5 {[%clk 01:02:28]}
{[%emt 00:03:29]} 22. g3 {[%emt 00:12:34]} Kf7 {[%clk 00:44:17]} {[%emt
00:12:29]} 23. Nc2 {[%clk 01:10:11]} {[%emt 00:01:39]} c5 {[%clk 00:43:19]}
{[%emt 00:01:29]} 24. Rd7+ {[%clk 01:09:12]} {[%emt 00:01:30]} Re7 {[%clk
00:43:45]} {[%emt 00:00:03]} 25. Rxe7+ {[%clk 01:09:37]} {[%emt 00:00:05]} Kxe7
{[%clk 00:44:13]} {[%emt 00:00:02]} 26. f4 {[%clk 01:01:06]} {[%emt 00:09:01]}
Bf6 {[%clk 00:42:31]} {[%emt 00:02:12]} 27. Bd2 {[%clk 01:00:41]} {[%emt
00:00:56]} Bc4 {[%clk 00:41:16]} {[%emt 00:01:45]} 28. a3 {[%clk 00:55:11]}
{[%emt 00:06:00]} Kd6 {[%clk 00:39:09]} {[%emt 00:02:36]} 29. Kf2 {[%clk
00:55:11]} {[%emt 00:00:31]} Bd3 {[%clk 00:37:57]} {[%emt 00:01:42]} 30. Ne1
{[%clk 00:51:36]} {[%emt 00:04:05]} Be4 {[%clk 00:37:31]} {[%emt 00:00:56]} 31.
Nf3 {[%clk 00:43:26]} {[%emt 00:08:40]} Kd5 {[%clk 00:21:44]} {[%emt 00:16:17]}
32. Ne5 {[%clk 00:43:29]} {[%emt 00:00:27]} Bb1 {[%clk 00:18:57]} {[%emt
00:03:17]} 33. Kf3 {[%clk 00:38:00]} {[%emt 00:05:59]} Be4+ {[%clk 00:18:22]}
{[%emt 00:01:05]} 34. Ke3 {[%clk 00:21:40]} {[%emt 00:16:49]} g5 {[%clk
00:18:46]} {[%emt 00:00:06]} 35. c4+ {[%clk 00:21:00]} {[%emt 00:01:10]} Ke6
{[%clk 00:19:10]} {[%emt 00:00:05]} 36. Bc3 {[%clk 00:21:19]} {[%emt 00:00:11]}
gxf4+ {[%clk 00:13:27]} {[%emt 00:06:13]} 37. gxf4 {[%clk 00:19:32]} {[%emt
00:02:18]} Bg2 {[%clk 00:12:36]} {[%emt 00:01:21]} 38. Nf3 {[%clk 00:16:20]}
{[%emt 00:03:42]} Bxc3 {[%clk 00:12:04]} {[%emt 00:01:02]} 39. bxc3 {[%clk
00:16:12]} {[%emt 00:00:37]} h6 {[%clk 00:10:56]} {[%emt 00:01:38]} 40. h4
{[%clk 00:16:16]} {[%emt 00:00:27]} Bxf3 {[%clk 00:10:10]} {[%emt 00:01:16]} 41.
Kxf3 {[%clk 00:16:38]} {[%emt 00:00:08]} Kd6 {[%clk 00:10:04]} {[%emt
00:00:36]} 42. Ke3 {[%clk 00:16:09]} {[%emt 00:00:59]} Kc6 {[%clk 00:10:28]}
{[%emt 00:00:06]} 43. a4 {[%clk 00:15:25]} {[%emt 00:01:14]} a6 {[%clk
00:10:23]} {[%emt 00:00:34]} 44. Kd3 {[%clk 00:15:40]} {[%emt 00:00:15]} b5
{[%clk 00:10:37]} {[%emt 00:00:16]} 45. cxb5+ {[%clk 00:09:35]} {[%emt
00:06:36]} axb5 {[%clk 00:11:05]} {[%emt 00:00:02]} 46. axb5+ {[%clk 00:09:40]}
{[%emt 00:00:25]} Kxb5 {[%clk 00:11:34]} {[%emt 00:00:02]} 47. h5 {[%clk
00:10:04]} {[%emt 00:00:06]} Kb6 {[%clk 00:11:23]} {[%emt 00:00:41]} 48. Kc2
{[%clk 00:08:08]} {[%emt 00:02:26]} c4 {[%clk 00:09:16]} {[%emt 00:02:37]} 49.
Kc1 {[%clk 00:08:10]} {[%emt 00:00:28]} Kc6 {[%clk 00:07:31]} {[%emt 00:02:15]}
50. Kd2 {[%clk 00:08:27]} {[%emt 00:00:13]} Kb5 {[%clk 00:05:48]} {[%emt
00:02:13]} 51. Kc2 {[%clk 00:08:27]} {[%emt 00:00:30]} Ka5 {[%clk 00:05:52]}
{[%emt 00:00:25]} 52. Kc1 {[%clk 00:08:43]} {[%emt 00:00:14]} Kb6 {[%clk
00:06:00]} {[%emt 00:00:22]} 53. Kc2 {[%clk 00:08:35]} {[%emt 00:00:39]} Kc6
{[%clk 00:05:28]} {[%emt 00:01:03]} 54. Kd2 {[%clk 00:08:59]} {[%emt 00:00:05]}
Kd6 {[%clk 00:05:40]} {[%emt 00:00:17]} 55. Ke2 {[%clk 00:09:08]} {[%emt
00:00:21]} Kd5 {[%clk 00:05:39]} {[%emt 00:00:30]} 56. Ke3 {[%clk 00:09:17]}
{[%emt 00:00:22]} Kc5 {[%clk 00:06:03]} {[%emt 00:00:07]} 57. Kd2 {[%clk
00:09:42]} {[%emt 00:00:04]} Kc6 {[%clk 00:06:08]} {[%emt 00:00:25]} 58. Ke3
{[%clk 00:09:36]} {[%emt 00:00:32]} Kd5 {[%clk 00:06:14]} {[%emt 00:00:28]} 59.
Kf3 {[%clk 00:10:01]} {[%emt 00:00:05]} Kc6 {[%clk 00:05:31]} {[%emt 00:01:13]}
60. Ke3 {[%clk 00:10:11]} {[%emt 00:00:20]} Kc5 {[%clk 00:05:55]} {[%emt
00:00:06]} 61. Kd2 {[%clk 00:10:36]} {[%emt 00:00:05]} Kb5 {[%clk 00:06:14]}
{[%emt 00:00:11]} 62. Kc1 {[%clk 00:10:51]} {[%emt 00:00:16]} Ka4 {[%clk
00:06:40]} {[%emt 00:00:04]} 63. Kb2 {[%clk 00:11:17]} {[%emt 00:00:04]} Ka5
{[%clk 00:07:05]} {[%emt 00:00:04]} 64. Kc1 {[%clk 00:11:38]} {[%emt 00:00:09]}
Kb5 {[%clk 00:07:20]} {[%emt 00:00:15]} 65. Kc2 {[%clk 00:12:03]} {[%emt
00:00:05]} Kb6 {[%clk 00:06:30]} {[%emt 00:01:20]} 66. Kc1 {[%clk 00:12:21]}
{[%emt 00:00:12]} Kc6 {[%clk 00:06:38]} {[%emt 00:00:22]} 67. Kd2 {[%clk
00:12:46]} {[%emt 00:00:06]} Kc5 {[%clk 00:05:46]} {[%emt 00:01:21]} 68. Ke3
{[%clk 00:13:06]} {[%emt 00:00:10]} Kd5 {[%clk 00:06:13]} {[%emt 00:00:03]} 69.
Kf3 {[%clk 00:13:32]} {[%emt 00:00:04]} Kc6 {[%clk 00:06:40]} {[%emt 00:00:04]}
70. Ke3 {[%clk 00:13:52]} {[%emt 00:00:10]} Kc5 {[%clk 00:07:01]} {[%emt
00:00:09]} 71. Kd2 {[%clk 00:14:16]} {[%emt 00:00:06]} Kc6 {[%clk 00:07:15]}
{[%emt 00:00:16]} 72. Ke3 {[%clk 00:14:36]} {[%emt 00:00:11]} Kc5 {[%clk
00:07:38]} {[%emt 00:00:07]} 73. Kd2 {[%clk 00:15:00]} {[%emt 00:00:05]} Kb5
{[%clk 00:07:54]} {[%emt 00:00:14]} 1/2-1/2

[Event "9e Open International de Porticcio"]
[Site "Porticcio, France"]
[Date "2024.07.05"]
[Round "9.7"]
[White "Derige Kane, Yan"]
[Black "Relange, Eloi"]
[Result "1/2-1/2"]
[TimeControl "1h30+30s/move"]
[WhiteElo "2237"]
[BlackElo "2442"]

1. e4 {[%clk 01:16:38]} {[%emt 00:03:03]} d6 {[%clk 01:30:39]} {[%emt
00:00:23]} 2. d4 {[%clk 01:16:42]} {[%emt 00:00:25]} Nf6 {[%clk 01:31:00]}
{[%emt 00:00:08]} 3. Nc3 {[%clk 01:16:24]} {[%emt 00:00:49]} e5 {[%clk
01:31:21]} {[%emt 00:00:09]} 4. dxe5 {[%clk 01:16:13]} {[%emt 00:00:42]} dxe5
{[%clk 01:31:45]} {[%emt 00:00:06]} 5. Qxd8+ {[%clk 01:16:36]} {[%emt
00:00:07]} Kxd8 {[%clk 01:32:11]} {[%emt 00:00:04]} 6. Bc4 {[%clk 01:17:00]}
{[%emt 00:00:07]} Ke8 {[%clk 01:32:19]} {[%emt 00:00:20]} 7. f4 {[%clk
01:17:03]} {[%emt 00:00:26]} Bb4 {[%clk 01:29:48]} {[%emt 00:03:01]} 8. Bd3
{[%clk 01:17:14]} {[%emt 00:00:19]} Nbd7 {[%clk 01:26:09]} {[%emt 00:04:09]} 9.
Nf3 {[%clk 01:14:59]} {[%emt 00:02:46]} Nc5 {[%clk 01:25:38]} {[%emt 00:01:00]}
10. O-O {[%clk 01:07:58]} {[%emt 00:07:31]} Bxc3 {[%clk 01:08:00]} {[%emt
00:18:08]} 11. bxc3 {[%clk 01:08:08]} {[%emt 00:00:20]} Nfxe4 {[%clk 01:08:22]}
{[%emt 00:00:09]} 12. Re1 {[%clk 00:57:59]} {[%emt 00:10:39]} Nxd3 {[%clk
00:56:48]} {[%emt 00:12:03]} 13. cxd3 {[%clk 00:54:06]} {[%emt 00:04:24]} Nxc3
{[%clk 00:55:45]} {[%emt 00:01:33]} 14. Bb2 {[%clk 00:52:54]} {[%emt 00:01:41]}
Na4 {[%clk 00:55:59]} {[%emt 00:00:16]} 15. Bxe5 {[%clk 00:52:50]} {[%emt
00:00:35]} Kf8 {[%clk 00:55:43]} {[%emt 00:00:46]} 16. Rac1 {[%clk 00:49:57]}
{[%emt 00:03:23]} h6 {[%clk 00:49:52]} {[%emt 00:06:22]} 17. Rxc7 {[%clk
00:47:37]} {[%emt 00:02:49]} Kg8 {[%clk 00:48:55]} {[%emt 00:01:26]} 18. Rec1
{[%clk 00:45:20]} {[%emt 00:02:48]} Be6 {[%clk 00:47:15]} {[%emt 00:02:09]} 19.
Rxb7 {[%clk 00:45:37]} {[%emt 00:00:13]} Kh7 {[%clk 00:47:18]} {[%emt
00:00:27]} 20. Rcc7 {[%clk 00:40:19]} {[%emt 00:05:48]} a5 {[%clk 00:37:57]}
{[%emt 00:09:52]} 21. a3 {[%clk 00:40:17]} {[%emt 00:00:33]} Rhc8 {[%clk
00:34:24]} {[%emt 00:04:02]} 22. Nd4 {[%clk 00:37:28]} {[%emt 00:03:18]} Bd5
{[%clk 00:31:38]} {[%emt 00:03:16]} 23. Rxc8 {[%clk 00:34:38]} {[%emt
00:03:21]} Rxc8 {[%clk 00:31:58]} {[%emt 00:00:09]} 24. Rc7 {[%clk 00:35:05]}
{[%emt 00:00:03]} Rb8 {[%clk 00:31:14]} {[%emt 00:01:13]} 25. Nf5 {[%clk
00:32:10]} {[%emt 00:03:26]} Rb3 {[%clk 00:30:41]} {[%emt 00:01:03]} 26. Nxg7
{[%clk 00:30:36]} {[%emt 00:02:05]} Nb2 {[%clk 00:25:18]} {[%emt 00:05:52]} 27.
Rc3 {[%clk 00:26:46]} {[%emt 00:04:21]} Nxd3 {[%clk 00:24:47]} {[%emt
00:01:01]} 28. Rxb3 {[%clk 00:24:08]} {[%emt 00:03:09]} Bxb3 {[%clk 00:25:09]}
{[%emt 00:00:07]} 29. Nf5 {[%clk 00:23:47]} {[%emt 00:00:52]} Kg6 {[%clk
00:23:00]} {[%emt 00:02:39]} 30. Ne3 {[%clk 00:22:23]} {[%emt 00:01:54]} Nxe5
{[%clk 00:20:00]} {[%emt 00:03:31]} 31. fxe5 {[%clk 00:22:52]} {[%emt
00:00:01]} f6 {[%clk 00:20:16]} {[%emt 00:00:13]} 32. exf6 {[%clk 00:22:53]}
{[%emt 00:00:28]} Kxf6 {[%clk 00:20:42]} {[%emt 00:00:04]} 33. Kf2 {[%clk
00:23:05]} {[%emt 00:00:19]} Ke5 {[%clk 00:20:43]} {[%emt 00:00:28]} 34. Ke2
{[%clk 00:22:22]} {[%emt 00:01:13]} Kd4 {[%clk 00:20:37]} {[%emt 00:00:36]} 35.
Kd2 {[%clk 00:22:26]} {[%emt 00:00:26]} Be6 {[%clk 00:20:55]} {[%emt 00:00:12]}
36. g4 {[%clk 00:15:56]} {[%emt 00:07:00]} Ke4 {[%clk 00:19:37]} {[%emt
00:01:48]} 37. h4 {[%clk 00:16:20]} {[%emt 00:00:06]} Kf4 {[%clk 00:19:23]}
{[%emt 00:00:43]} 38. g5 {[%clk 00:16:45]} {[%emt 00:00:05]} hxg5 {[%clk
00:18:45]} {[%emt 00:01:08]} 39. hxg5 {[%clk 00:17:09]} {[%emt 00:00:07]} Kxg5
{[%clk 00:19:12]} {[%emt 00:00:03]} 40. Kc3 {[%clk 00:17:31]} {[%emt 00:00:08]}
Kf6 {[%clk 00:18:18]} {[%emt 00:01:23]} 41. Nc4 {[%clk 00:17:26]} {[%emt
00:00:36]} Bxc4 {[%clk 00:18:38]} {[%emt 00:00:10]} 42. Kxc4 {[%clk 00:17:52]}
{[%emt 00:00:04]} Ke7 {[%clk 00:19:00]} {[%emt 00:00:07]} 43. Kb5 {[%clk
00:18:14]} {[%emt 00:00:09]} Kd8 {[%clk 00:19:26]} {[%emt 00:00:04]} 44. Kxa5
{[%clk 00:18:36]} {[%emt 00:00:08]} Kc8 {[%clk 00:19:52]} {[%emt 00:00:03]} 45.
Kb6 {[%clk 00:18:54]} {[%emt 00:00:12]} Kb8 {[%clk 00:20:18]} {[%emt 00:00:03]}
46. a4 {[%clk 00:19:21]} {[%emt 00:00:04]} Ka8 {[%clk 00:20:46]} {[%emt
00:00:02]} 47. a5 {[%clk 00:19:47]} {[%emt 00:00:04]} Kb8 {[%clk 00:21:13]}
{[%emt 00:00:02]} 48. a6 {[%clk 00:20:13]} {[%emt 00:00:05]} Ka8 {[%clk
00:21:41]} {[%emt 00:00:01]} 49. a7 {[%clk 00:20:38]} {[%emt 00:00:06]} 1/2-1/2